fUST/lending_fUST_20250115
["ID","MTS","AMOUNT","RATE_DAILY","PERIOD"]
[348978180,1736911857097,-500.0,0.00019863,3]
[348978181,1736911857106,-3213.48997858,0.00019887,2]
[348978182,1736911857116,-621.79854152,0.00019899,3]
[348978183,1736911857126,-151.0,0.000199,2]
[348978184,1736911857135,-171.640856,0.000199,2]
[348978185,1736911857145,-171.640856,0.000199,2]
[348978186,1736911857155,-151.0,0.000199,2]
[348978187,1736911857165,-218.599444,0.000199,2]
[348978188,1736911857174,-646.942084,0.000199,2]
[348978189,1736911857187,-646.942084,0.000199,2]
[348978190,1736911857197,-151.0,0.000199,2]
[348978191,1736911857207,-202.85183331,0.000199,2]
[348978192,1736911857217,-343.87813782,0.00019921,2]
[348978193,1736911857227,-467.34634476,0.0001996,2]
[348978194,1736911857237,-500.0,0.00019973,2]
[348978195,1736911857247,-500.0,0.00019973,2]
[348978196,1736911857258,-545.70162608,0.00019973,2]
[348978197,1736911857268,-227.71716312,0.00019973,2]
[348978198,1736911857277,-503.94370734,0.00019973,2]
[348978199,1736911857288,-500.0,0.00019973,2]
[348978200,1736911857299,-500.0,0.00019973,2]
[348978201,1736911857311,-162.02968336,0.00019979,3]
[348978202,1736911857325,-704.82,0.00019979,3]
[348978203,1736911857334,-7591.48642153,0.0001998,2]
[348978204,1736911857345,-5000.0,0.0001998,2]
[348978205,1736911857355,-151.0,0.00019986,2]
[348978206,1736911857365,-171.640856,0.00019986,2]
[348978207,1736911857375,-171.640856,0.00019986,2]
[348978208,1736911857385,-151.0,0.00019986,2]
[348978209,1736911857395,-646.942084,0.00019986,2]
[348978210,1736911857404,-646.942084,0.00019986,2]
[348978211,1736911857415,-171.640856,0.00019987,2]
[348978212,1736911857424,-171.640856,0.00019987,2]
[348978213,1736911857434,-171.640856,0.00019987,2]
[348978214,1736911857443,-171.640856,0.00019987,2]
[348978215,1736911857454,-171.640856,0.00019987,2]
[348978216,1736911857463,-171.640856,0.00019987,2]
[348978217,1736911857473,-171.640856,0.00019987,2]
[348978218,1736911857482,-171.640856,0.00019987,2]
[348978219,1736911857492,-171.640856,0.00019987,2]
[348978220,1736911857502,-171.640856,0.00019987,2]
[348978221,1736911857512,-171.640856,0.00019987,2]
[348978222,1736911857521,-171.640856,0.00019987,2]
[348978223,1736911857530,-171.640856,0.00019987,2]
[348978224,1736911857539,-171.640856,0.00019987,2]
[348978225,1736911857550,-171.640856,0.00019987,2]
[348978226,1736911857560,-171.640848,0.00019987,2]
[348978227,1736911857569,-233.869586,0.00019987,2]
[348978228,1736911857579,-646.942084,0.00019987,2]
[348978229,1736911857589,-646.942084,0.00019987,2]
[348978230,1736911857598,-646.942084,0.00019987,2]
[348978231,1736911857608,-646.942084,0.00019987,2]
[348978232,1736911857618,-646.942084,0.00019987,2]
[348978233,1736911857627,-646.942084,0.00019987,2]
[348978234,1736911857636,-646.942084,0.00019987,2]
[348978235,1736911857646,-646.942084,0.00019987,2]
[348978236,1736911857655,-646.942084,0.00019987,2]
[348978237,1736911857665,-646.942084,0.00019987,2]
[348978238,1736911857739,-646.942084,0.00019987,2]
[348978239,1736911857749,-646.942084,0.00019987,2]
[348978240,1736911857759,-646.942084,0.00019987,2]
[348978241,1736911857769,-646.942084,0.00019987,2]
[348978242,1736911857779,-646.942084,0.00019987,2]
[348978243,1736911857790,-646.942087,0.00019987,2]
[348978244,1736911857799,-264.786151,0.00019988,2]
[348978245,1736911857809,-264.786151,0.00019988,2]
[348978246,1736911857819,-264.786151,0.00019988,2]
[348978247,1736911857830,-264.786151,0.00019988,2]
[348978248,1736911857840,-264.786151,0.00019988,2]
[348978249,1736911857850,-264.786151,0.00019988,2]
[348978250,1736911857859,-264.786151,0.00019988,2]
[348978251,1736911857869,-264.786151,0.00019988,2]
[348978252,1736911857880,-264.786151,0.00019988,2]
[348978253,1736911857889,-264.786151,0.00019988,2]
[348978254,1736911857898,-264.786151,0.00019988,2]
[348978255,1736911857908,-264.786151,0.00019988,2]
[348978256,1736911857917,-264.786151,0.00019988,2]
[348978257,1736911857928,-264.786151,0.00019988,2]
[348978258,1736911857940,-264.786151,0.00019988,2]
[348978259,1736911857951,-264.786151,0.00019988,2]
[348978260,1736911857962,-264.786151,0.00019988,2]
[348978261,1736911857973,-264.786151,0.00019988,2]
[348978262,1736911857984,-264.786151,0.00019988,2]
[348978263,1736911857995,-264.786155,0.00019988,2]
[348978264,1736911858006,-162.230074,0.00019988,2]
[348978265,1736911858017,-704.82,0.00019988,3]
[348978266,1736911858027,-704.82,0.00019988,3]
[348978267,1736911858039,-704.82,0.00019988,3]
[348978268,1736911858051,-704.82,0.00019988,3]
[348978269,1736911858060,-704.82,0.00019988,3]
[348978270,1736911858070,-704.82,0.00019988,3]
[348978271,1736911858080,-151.0,0.00019989,2]
[348978272,1736911858089,-151.0,0.00019989,2]
[348978273,1736911858099,-151.0,0.00019989,2]
[348978274,1736911858109,-151.0,0.00019989,2]
[348978275,1736911858121,-151.0,0.00019989,2]
[348978276,1736911858132,-151.0,0.00019989,2]
[348978277,1736911858142,-151.0,0.00019989,2]
[348978278,1736911858152,-151.0,0.00019989,2]
[348978279,1736911858163,-158.822908,0.00019989,2]
[348978280,1736911858173,-151.0,0.00019989,2]
[348978281,1736911858184,-151.0,0.00019989,2]
[348978282,1736911858193,-151.0,0.00019989,2]
[348978283,1736911858203,-151.0,0.00019989,2]
[348978284,1736911858214,-151.0,0.00019989,2]
[348978285,1736911858223,-151.0,0.00019989,2]
[348978286,1736911858233,-151.0,0.00019989,2]
[348978287,1736911858243,-151.0,0.00019989,2]
[348978288,1736911858252,-151.0,0.00019989,2]
[348978289,1736911858262,-168.270852,0.00019989,2]
[348978290,1736911858272,-151.0,0.00019989,2]
[348978291,1736911858281,-151.0,0.00019989,2]
[348978292,1736911858291,-151.956043,0.00019989,2]
[348978293,1736911858301,-423.429437,0.00019989,2]
[348978294,1736911858312,-423.429437,0.00019989,2]
[348978295,1736911858323,-423.429437,0.00019989,2]
[348978296,1736911858332,-423.429437,0.00019989,2]
[348978297,1736911858342,-423.429437,0.00019989,2]
[348978298,1736911858351,-423.429437,0.00019989,2]
[348978299,1736911858362,-423.429437,0.00019989,2]
[348978300,1736911858371,-423.429437,0.00019989,2]
[348978301,1736911858380,-423.429437,0.00019989,2]
[348978302,1736911858390,-423.429437,0.00019989,2]
[348978303,1736911858400,-423.429437,0.00019989,2]
[348978304,1736911858410,-423.429437,0.00019989,2]
[348978305,1736911858419,-423.429437,0.00019989,2]
[348978306,1736911858429,-423.429437,0.00019989,2]
[348978307,1736911858438,-423.429437,0.00019989,2]
[348978308,1736911858448,-423.429437,0.00019989,2]
[348978309,1736911858457,-423.429437,0.00019989,2]
[348978310,1736911858467,-423.429437,0.00019989,2]
[348978311,1736911858476,-423.429437,0.00019989,2]
[348978312,1736911858486,-423.429437,0.00019989,2]
[348978313,1736911858495,-503.62394129,0.00019989,3]
[348978314,1736911858505,-500.0,0.00019989,3]
[348978315,1736911858514,-500.0,0.00019989,3]
[348978316,1736911858523,-500.0,0.00019989,3]
[348978317,1736911858533,-500.0,0.00019989,3]
[348978318,1736911858543,-522.19,0.00019989,3]
[348978319,1736911858554,-500.0,0.00019989,3]
[348978320,1736911858563,-500.0,0.00019989,3]
[348978321,1736911858573,-500.0,0.00019989,3]
[348978322,1736911858582,-500.0,0.00019989,3]
[348978323,1736911858591,-500.0,0.00019989,3]
[348978324,1736911858600,-500.0,0.00019989,3]
[348978325,1736911858609,-500.0,0.00019989,3]
[348978326,1736911858619,-500.0,0.00019989,3]
[348978327,1736911858629,-500.0,0.00019989,3]
[348978328,1736911858638,-500.0,0.00019989,3]
[348978329,1736911858648,-243.6553158,0.00019989,3]
[348978330,1736911858657,-500.0,0.00019989,3]
[348978331,1736911858667,-500.0,0.00019989,3]
[348978332,1736911858677,-500.0,0.00019989,3]
[348978333,1736911858686,-500.0,0.00019989,3]
[348978334,1736911858695,-500.0,0.00019989,3]
[348978335,1736911858705,-500.0,0.00019989,3]
[348978336,1736911858714,-810.73,0.00019989,3]
[348978337,1736911858723,-500.0,0.00019989,3]
[348978338,1736911858732,-500.0,0.00019989,3]
[348978339,1736911858742,-500.0,0.00019989,3]
[348978340,1736911858751,-500.0,0.00019989,3]
[348978341,1736911858760,-791.4,0.00019989,3]
[348978342,1736911858770,-445.2737305,0.00019989,3]
[348978343,1736911858779,-500.0,0.00019989,3]
[348978344,1736911858788,-500.0,0.00019989,3]
[348978345,1736911858798,-500.0,0.00019989,3]
[348978346,1736911858807,-500.0,0.00019989,3]
[348978347,1736911858817,-500.0,0.00019989,3]
[348978348,1736911858827,-500.0,0.00019989,3]
[348978349,1736911858837,-500.0,0.00019989,3]
[348978350,1736911858846,-500.0,0.00019989,3]
[348978351,1736911858855,-500.0,0.00019989,3]
[348978352,1736911858864,-500.0,0.00019989,3]
[348978353,1736911858874,-500.0,0.00019989,3]
[348978354,1736911858883,-699.2,0.00019989,3]
[348978355,1736911858893,-500.0,0.00019989,3]
[348978356,1736911858902,-500.0,0.00019989,3]
[348978357,1736911858912,-4212.25,0.00019989,3]
[348978358,1736911858922,-500.0,0.00019989,3]
[348978359,1736911858931,-500.0,0.00019989,3]
[348978360,1736911858940,-500.0,0.00019989,3]
[348978361,1736911858951,-500.0,0.00019989,3]
[348978362,1736911858960,-500.0,0.00019989,3]
[348978363,1736911858970,-500.0,0.00019989,3]
[348978364,1736911858979,-500.0,0.00019989,3]
[348978365,1736911858989,-2081.23,0.00019989,3]
[348978366,1736911858999,-500.0,0.00019989,3]
[348978367,1736911859009,-500.0,0.00019989,3]
[348978368,1736911859018,-500.0,0.00019989,3]
[348978369,1736911859027,-500.0,0.00019989,3]
[348978370,1736911859037,-500.0,0.00019989,3]
[348978371,1736911859047,-500.0,0.00019989,3]
[348978372,1736911859057,-500.0,0.00019989,3]
[348978373,1736911859067,-500.0,0.00019989,3]
[348978374,1736911859077,-3637.11,0.00019989,3]
[348978375,1736911859086,-3637.11,0.00019989,3]
[348978376,1736911859096,-500.0,0.00019989,3]
[348978377,1736911859106,-721.35,0.00019989,3]
[348978378,1736911859115,-154.4,0.00019989,2]
[348978379,1736911859125,-151.0,0.0001999,2]
[348978380,1736911859135,-151.0,0.0001999,2]
[348978381,1736911859144,-152.346053,0.0001999,2]
[348978382,1736911859154,-151.0,0.0001999,2]
[348978383,1736911859163,-151.0,0.0001999,2]
[348978384,1736911859173,-151.0,0.0001999,2]
[348978385,1736911859183,-169.779929,0.0001999,2]
[348978386,1736911859193,-151.0,0.0001999,2]
[348978387,1736911859203,-151.0,0.0001999,2]
[348978388,1736911859213,-224.031947,0.0001999,2]
[348978389,1736911859222,-151.0,0.0001999,2]
[348978390,1736911859232,-151.0,0.0001999,2]
[348978391,1736911859243,-151.0,0.0001999,2]
[348978392,1736911859253,-172.972207,0.0001999,2]
[348978393,1736911859264,-704.82,0.0001999,3]
[348978394,1736911859274,-704.82,0.0001999,3]
[348978395,1736911859284,-704.82,0.0001999,3]
[348978396,1736911859294,-704.82,0.0001999,3]
[348978397,1736911859306,-705.0002009,0.0001999,3]
[348978398,1736911859321,-3637.11,0.0001999,3]
[348978399,1736911859331,-3637.11,0.0001999,3]
[348978400,1736911859341,-152.784973,0.00019991,2]
[348978401,1736911859351,-151.0,0.00019991,2]
[348978402,1736911859362,-152.525991,0.00019991,2]
[348978403,1736911859371,-151.0,0.00019991,2]
[348978404,1736911859382,-151.0,0.00019991,2]
[348978405,1736911859392,-151.0,0.00019991,2]
[348978406,1736911859402,-3637.11,0.00019991,3]
[348978407,1736911859412,-3637.11,0.00019991,3]
[348978408,1736911859422,-449.026294,0.00019992,2]
[348978409,1736911859432,-449.026294,0.00019992,2]
[348978410,1736911859442,-449.026294,0.00019992,2]
[348978411,1736911859452,-151.0,0.00019992,2]
[348978412,1736911859461,-151.0,0.00019992,2]
[348978413,1736911859471,-151.0,0.00019992,2]
[348978414,1736911859481,-184.452965,0.00019992,2]
[348978415,1736911859493,-153.0,0.00019993,2]
[348978416,1736911859503,-449.026294,0.00019993,2]
[348978417,1736911859513,-449.026294,0.00019993,2]
[348978418,1736911859523,-151.0,0.00019993,2]
[348978419,1736911859533,-3637.11,0.00019993,3]
[348978420,1736911859543,-3637.11,0.00019993,3]
[348978421,1736911859554,-3637.11,0.00019993,3]
[348978422,1736911859564,-3637.11,0.00019993,3]
[348978423,1736911859574,-3637.11,0.00019993,3]
[348978424,1736911859584,-3637.11,0.00019993,3]
[348978425,1736911859594,-3637.11,0.00019993,3]
[348978426,1736911859604,-3637.11,0.00019993,3]
[348978427,1736911859614,-3637.11,0.00019993,3]
[348978428,1736911859624,-500.0,0.00019994,3]
[348978429,1736911859633,-500.0,0.00019994,3]
[348978430,1736911859643,-449.026294,0.00019994,2]
[348978431,1736911859653,-449.026294,0.00019994,2]
[348978432,1736911859663,-449.026294,0.00019994,2]
[348978433,1736911859673,-449.026294,0.00019994,2]
[348978434,1736911859682,-449.026294,0.00019994,2]
[348978435,1736911859691,-449.026294,0.00019994,2]
[348978436,1736911859701,-449.026294,0.00019994,2]
[348978437,1736911859711,-449.026294,0.00019994,2]
[348978438,1736911859720,-449.026294,0.00019994,2]
[348978439,1736911859730,-449.026294,0.00019994,2]
[348978440,1736911859740,-449.026294,0.00019994,2]
[348978441,1736911859749,-449.026294,0.00019994,2]
[348978442,1736911859759,-449.026294,0.00019994,2]
[348978443,1736911859768,-449.026298,0.00019994,2]
[348978444,1736911859778,-151.0,0.00019994,2]
[348978445,1736911859787,-151.0,0.00019994,2]
[348978446,1736911859798,-151.0,0.00019994,2]
[348978447,1736911859808,-151.0,0.00019994,2]
[348978448,1736911859817,-151.0,0.00019994,2]
[348978449,1736911859827,-151.0,0.00019994,2]
[348978450,1736911859837,-151.0,0.00019994,2]
[348978451,1736911859847,-151.0,0.00019994,2]
[348978452,1736911859857,-265.441227,0.00019994,2]
[348978453,1736911859866,-361.4213687,0.00019994,3]
[348978454,1736911859960,-274.48909496,0.00019994,3]
[348978455,1736911859971,-500.0,0.00019994,2]
[348978456,1736911859981,-500.0,0.00019994,3]
[348978457,1736911859990,-539.94055402,0.00019994,3]
[348978458,1736911860000,-500.0,0.00019994,3]
[348978459,1736911860010,-500.94244147,0.00019994,3]
[348978460,1736911860019,-500.0,0.00019994,3]
[348978461,1736911860029,-512.19154465,0.00019994,3]
[348978462,1736911860038,-501.80252969,0.00019994,3]
[348978463,1736911860050,-504.70337052,0.00019994,3]
[348978464,1736911860060,-500.0,0.00019994,3]
[348978465,1736911860070,-500.92982275,0.00019994,3]
[348978466,1736911860080,-500.0,0.00019994,3]
[348978467,1736911860089,-639.04437251,0.00019994,3]
[348978468,1736911860099,-500.9208057,0.00019994,3]
[348978469,1736911860108,-536.6713274,0.00019994,3]
[348978470,1736911860118,-504.27716045,0.00019994,3]
[348978471,1736911860128,-501.22094269,0.00019994,3]
[348978472,1736911860137,-267.75087493,0.00019994,3]
[348978473,1736911860147,-501.10294041,0.00019994,3]
[348978474,1736911860156,-500.0,0.00019994,3]
[348978475,1736911860165,-501.50203221,0.00019994,3]
[348978476,1736911860176,-501.05577655,0.00019994,14]
[348978477,1736911860185,-501.92173115,0.00019994,3]
[348978478,1736911860195,-500.0,0.00019994,3]
[348978479,1736911860205,-501.40379779,0.00019994,3]
[348978480,1736911860215,-500.0,0.00019994,3]
[348978481,1736911860224,-500.0,0.00019994,3]
[348978482,1736911860234,-502.16254598,0.00019994,3]
[348978483,1736911860243,-500.0,0.00019994,3]
[348978484,1736911860253,-500.0,0.00019994,3]
[348978485,1736911860262,-508.33129673,0.00019994,3]
[348978486,1736911860271,-500.0,0.00019994,3]
[348978487,1736911860281,-557.09197931,0.00019994,3]
[348978488,1736911860290,-500.0,0.00019994,3]
[348978489,1736911860302,-504.67367799,0.00019994,3]
[348978490,1736911860315,-500.0,0.00019994,3]
[348978491,1736911860325,-413.188831,0.00019994,3]
[348978492,1736911860334,-508.79554264,0.00019994,3]
[348978493,1736911860343,-501.55492594,0.00019994,3]
[348978494,1736911860355,-500.0,0.00019994,3]
[348978495,1736911860364,-501.53793324,0.00019994,3]
[348978496,1736911860374,-500.0,0.00019994,3]
[348978497,1736911860384,-427.8980833,0.00019994,3]
[348978498,1736911860394,-500.0,0.00019994,3]
[348978499,1736911860403,-500.0,0.00019994,3]
[348978500,1736911860413,-500.0,0.00019994,3]
[348978501,1736911860422,-500.0,0.00019994,3]
[348978502,1736911860432,-500.0,0.00019994,3]
[348978503,1736911860441,-500.0,0.00019994,3]
[348978504,1736911860450,-501.89202669,0.00019994,3]
[348978505,1736911860459,-500.0,0.00019994,3]
[348978506,1736911860468,-500.0,0.00019994,3]
[348978507,1736911860478,-500.0,0.00019994,3]
[348978508,1736911860487,-500.0,0.00019994,3]
[348978509,1736911860497,-151.0,0.00019995,2]
[348978510,1736911860506,-151.0,0.00019995,2]
[348978511,1736911860516,-151.0,0.00019995,2]
[348978512,1736911860525,-151.0,0.00019995,2]
[348978513,1736911860534,-151.0,0.00019995,2]
[348978514,1736911860544,-151.0,0.00019995,2]
[348978515,1736911860555,-500.0,0.00019995,3]
[348978516,1736911860564,-500.0,0.00019995,3]
[348978517,1736911860574,-3637.11,0.00019995,3]
[348978518,1736911860583,-151.0,0.00019996,2]
[348978519,1736911860593,-151.0,0.00019996,2]
[348978520,1736911860602,-151.0,0.00019996,2]
[348978521,1736911860611,-151.0,0.00019996,2]
[348978522,1736911860621,-151.0,0.00019996,2]
[348978523,1736911860630,-500.0,0.00019996,3]
[348978524,1736911860639,-500.0,0.00019996,3]
[348978525,1736911860649,-500.0,0.00019996,3]
[348978526,1736911860658,-500.0,0.00019996,3]
[348978527,1736911860667,-500.0,0.00019996,3]
[348978528,1736911860677,-500.0,0.00019996,3]
[348978529,1736911860687,-500.86391518,0.00019996,3]
[348978530,1736911860697,-4088.63,0.00019996,3]
[348978531,1736911860706,-3637.11,0.00019996,3]
[348978532,1736911860716,-500.0,0.00019996,3]
[348978533,1736911860727,-500.0,0.00019996,3]
[348978534,1736911860737,-151.0,0.00019997,2]
[348978535,1736911860747,-228.289161,0.00019997,2]
[348978536,1736911860757,-151.0,0.00019997,2]
[348978537,1736911860766,-151.0,0.00019997,2]
[348978538,1736911860776,-3637.11,0.00019997,3]
[348978539,1736911860786,-445.92430497,0.00019998,2]
[348978540,1736911860796,-3637.11,0.00019998,3]
[348978541,1736911860806,-3637.11,0.00019998,3]
[348978542,1736911860815,-3637.11,0.00019998,3]
[348978543,1736911860826,-3637.11,0.00019998,3]
[348978544,1736911860835,-3637.11,0.00019998,3]
[348978545,1736911860845,-3637.19186883,0.00019998,3]
[348978546,1736911860854,-500.0,0.00019999,3]
[348978547,1736911860863,-500.0,0.00019999,3]
[348978548,1736911860872,-500.0,0.00019999,3]
[348978549,1736911860882,-500.0,0.00019999,3]
[348978550,1736911860891,-500.0,0.00019999,3]
[348978551,1736911860900,-500.0,0.00019999,3]
[348978552,1736911860910,-608.74162794,0.00019999,3]
[348978553,1736911860920,-500.0,0.00019999,3]
[348978554,1736911860930,-4762.08,0.00019999,3]
[348978555,1736911860939,-693.0,0.0002,3]
[348978556,1736911860951,-692.0,0.0002,3]
[348978557,1736911860964,-692.0,0.0002,3]
[348978558,1736911860974,-692.0,0.0002,3]
[348978559,1736911860983,-4011.3517118,0.0002,2]
[348978560,1736911860993,-199.38507206,0.0002,2]
[348978561,1736911861003,-649455.95801944,0.0002,5]
[348978562,1736911861013,-2837.26,0.0002,2]
[348978563,1736911861022,-151.0,0.0002,2]
[348978564,1736911861032,-151.0,0.0002,2]
[348978565,1736911861043,-2251.0,0.0002,2]
[348978566,1736911861053,-152.95655,0.0002,2]
[348978567,1736911861063,-151.0,0.0002,2]
[348978568,1736911861075,-151.0,0.0002,2]
[348978569,1736911861085,-151.0,0.0002,2]
[348978570,1736911861098,-500.0,0.0002,3]
[348978571,1736911861108,-500.0,0.0002,3]
[348978572,1736911861118,-500.0,0.0002,3]
[348978573,1736911861128,-505.47328101,0.0002,3]
[348978574,1736911861138,-505.55967951,0.0002,3]
[348978575,1736911861149,-500.0,0.0002,3]
[348978576,1736911861159,-500.0,0.0002,3]
[348978577,1736911861169,-500.0,0.0002,3]
[348978578,1736911861179,-453.59203299,0.0002,3]
[348978579,1736911861189,-500.0,0.0002,3]
[348978580,1736911861199,-500.0,0.0002,3]
[348978581,1736911861208,-500.0,0.0002,3]
[348978582,1736911861218,-500.0,0.0002,3]
[348978583,1736911861228,-500.0,0.0002,3]
[348978584,1736911861237,-500.0,0.0002,3]
[348978585,1736911861246,-500.0,0.0002,3]
[348978586,1736911861256,-500.0,0.0002,3]
[348978587,1736911861265,-500.0,0.0002,3]
[348978588,1736911861274,-500.0,0.0002,3]
[348978589,1736911861284,-500.0,0.0002,3]
[348978590,1736911861293,-500.0,0.0002,3]
[348978591,1736911861306,-500.0,0.0002,3]
[348978592,1736911861321,-500.0,0.0002,3]
[348978593,1736911861330,-500.0,0.0002,3]
[348978594,1736911861340,-671.94,0.0002,3]
[348978595,1736911861349,-5138.38648311,0.0002,2]
[348978596,1736911861361,-508.04280015,0.0002,3]
[348978597,1736911861370,-500.0,0.0002,3]
[348978598,1736911861379,-582.06,0.0002,3]
[348978599,1736911861390,-504.51958429,0.0002,3]
[348978600,1736911861399,-500.0,0.0002,3]
[348978601,1736911861408,-500.0,0.0002,3]
[348978602,1736911861417,-500.0,0.0002,3]
[348978603,1736911861427,-449.6738028,0.0002,3]
[348978604,1736911861436,-205.54280207,0.0002,3]
[348978605,1736911861445,-500.0,0.0002,3]
[348978606,1736911861454,-500.0,0.0002,3]
[348978607,1736911861464,-500.0,0.0002,3]
[348978608,1736911861474,-500.0,0.0002,3]
[348978609,1736911861484,-1449.66,0.0002,3]
[348978610,1736911861494,-582.00240901,0.0002,3]
[348978611,1736911861503,-361.31135746,0.0002,3]
[348978612,1736911861513,-500.0,0.0002,3]
[348978613,1736911861523,-500.0,0.0002,3]
[348978614,1736911861532,-255.24811754,0.0002,3]
[348978615,1736911861542,-500.0,0.0002,3]
[348978616,1736911861555,-500.0,0.0002,3]
[348978617,1736911861565,-500.0,0.0002,3]
[348978618,1736911861575,-500.0,0.0002,3]
[348978619,1736911861584,-508.63684494,0.0002,3]
[348978620,1736911861593,-500.0,0.0002,3]
[348978621,1736911861603,-506.03087914,0.0002,3]
[348978622,1736911861612,-500.0,0.0002,3]
[348978623,1736911861621,-506.21101956,0.0002,2]
[348978624,1736911861631,-500.0,0.0002,3]
[348978625,1736911861641,-680.9,0.0002,3]
[348978626,1736911861651,-500.0,0.0002,3]
[348978627,1736911861660,-506.66616566,0.0002,3]
[348978628,1736911861670,-500.0,0.0002,3]
[348978629,1736911861679,-500.0,0.0002,3]
[348978630,1736911861688,-472.1254771,0.0002,3]
[348978631,1736911861697,-1205.37302,0.0002,2]
[348978632,1736911861707,-500.0,0.0002,3]
[348978633,1736911861716,-500.0,0.0002,3]
[348978634,1736911861725,-507.2031334,0.0002,3]
[348978635,1736911861734,-500.0,0.0002,3]
[348978636,1736911861744,-500.0,0.0002,3]
[348978637,1736911861753,-500.0,0.0002,3]
[348978638,1736911861763,-500.0,0.0002,3]
[348978639,1736911861773,-500.0,0.0002,3]
[348978640,1736911861783,-507.62340577,0.0002,3]
[348978641,1736911861793,-5112.05,0.0002,2]
[348978642,1736911861806,-500.0,0.0002,3]
[348978643,1736911861816,-500.0,0.0002,2]
[348978644,1736911861825,-500.0,0.0002,3]
[348978645,1736911861835,-952.49,0.0002,3]
[348978646,1736911861844,-2810.49,0.0002,3]
[348978647,1736911861853,-504.92907517,0.0002,3]
[348978648,1736911861862,-500.0,0.0002,3]
[348978649,1736911861872,-500.0,0.0002,3]
[348978650,1736911861883,-915.47,0.0002,3]
[348978651,1736911861894,-500.0,0.0002,3]
[348978652,1736911861906,-500.0,0.0002,3]
[348978653,1736911861918,-500.0,0.0002,3]
[348978654,1736911861928,-602.1233549,0.0002,3]
[348978655,1736911861938,-500.0,0.0002,3]
[348978656,1736911861948,-500.0,0.0002,3]
[348978657,1736911861958,-511.33627792,0.0002,3]
[348978658,1736911861967,-500.0,0.0002,3]
[348978659,1736911861976,-1246.12,0.0002,3]
[348978660,1736911861986,-511.74899883,0.0002,3]
[348978661,1736911861996,-648.65,0.0002,3]
[348978662,1736911862006,-1674.79,0.0002,3]
[348978663,1736911862016,-500.0,0.0002,3]
[348978664,1736911862026,-894.14,0.0002,3]
[348978665,1736911862036,-933.53,0.0002,3]
[348978666,1736911862046,-500.0,0.0002,3]
[348978667,1736911862060,-500.0,0.0002,3]
[348978668,1736911862070,-825.71,0.0002,3]
[348978669,1736911862080,-500.0,0.0002,3]
[348978670,1736911862090,-500.0,0.0002,3]
[348978671,1736911862099,-192.93908144,0.0002,3]
[348978672,1736911862110,-500.0,0.0002,3]
[348978673,1736911862120,-500.0,0.0002,3]
[348978674,1736911862130,-532.59,0.0002,3]
[348978675,1736911862141,-505.09657149,0.0002,3]
[348978676,1736911862151,-504.89239055,0.0002,3]
[348978677,1736911862161,-505.69140738,0.0002,3]
[348978678,1736911862171,-500.0,0.0002,3]
[348978679,1736911862181,-500.0,0.0002,3]